bitfinex-derivatives/quotes_ETHF0:USTF0_20240901
["timestamp","ask_amount","ask_price","bid_price","bid_amount"]
[1725156181890,5.2474753,2495.1,2495.0,0.00600336]
[1725156183680,8.4552753,2495.1,2495.0,0.00600336]
[1725156183882,12.4632753,2495.1,2495.0,0.00600336]
[1725156184708,19.4652853,2495.1,2495.0,0.00600336]
[1725156185589,19.8246476,2495.1,2495.0,0.00600336]
[1725156186492,16.6168476,2495.1,2495.0,0.00600336]
[1725156186884,19.8246476,2495.1,2495.0,0.00600336]
[1725156190301,19.8246476,2495.1,2494.8,1.56619789]
[1725156190302,1.40292,2494.9,2494.8,0.74854789]
[1725156190601,0.4009,2494.5,2494.4,2.08826385]
[1725156190802,6.7287,2494.5,2494.4,4.09384989]
[1725156191003,14.96697181,2494.5,2494.4,2.00558604]
[1725156191200,14.96697181,2494.5,2494.4,4.09384989]
[1725156191499,14.96697181,2494.5,2494.4,2.00558604]
[1725156192698,15.12899905,2494.5,2494.4,2.00558604]
[1725156192902,15.12899905,2494.5,2494.1,1.90387671]
[1725156192903,0.40095,2494.2,2494.1,1.90387671]
[1725156193100,0.40101,2493.8,2493.7,1.90387671]
[1725156193400,7.76252013,2493.8,2493.7,1.8161081]
[1725156193598,10.97032013,2493.8,2493.7,1.8161081]
[1725156193805,7.56193604,2493.8,2493.7,1.8161081]
[1725156194096,4.44193604,2493.8,2493.7,1.8161081]
[1725156194299,4.24151013,2493.8,2493.7,1.8161081]
[1725156194693,4.43206627,2493.9,2493.7,1.8161081]
[1725156194893,4.43206627,2493.9,2493.5,3.50289317]
[1725156194894,0.19661592,2493.9,2493.8,0.4778]
[1725156195300,0.19661592,2493.9,2493.5,3.10183317]
[1725156195301,8.85193345,2493.9,2493.5,3.10183317]
[1725156195501,0.16202227,2493.8,2493.6,0.4778]
[1725156195700,4.88223491,2493.9,2493.6,0.4778]
[1725156195893,3.77083291,2493.8,2493.7,0.4685]
[1725156196094,11.42861863,2493.8,2493.7,0.4685]
[1725156196597,11.62587623,2493.8,2493.7,0.4685]
[1725156197902,8.25605332,2493.8,2493.7,0.4685]
[1725156198799,8.25605332,2493.8,2493.5,0.00600336]
[1725156199193,0.40103,2493.7,2493.5,0.00600336]
[1725156199412,4.2020936,2493.7,2493.5,0.00600336]
[1725156199595,4.49369268,2493.6,2493.5,0.00600336]
[1725156199997,8.50409268,2493.6,2493.5,0.00600336]
[1725156202201,12.02513268,2493.6,2493.5,0.00600336]
[1725156202395,18.02513268,2493.6,2493.5,0.00600336]
[1725156202601,19.02193268,2493.6,2493.5,0.00600336]
[1725156202900,12.51373268,2493.6,2493.5,0.00600336]
[1725156203298,8.01473268,2493.6,2493.5,0.00600336]
[1725156203495,2.19779268,2493.6,2493.5,10.01640336]
[1725156203703,0.00600336,2494.0,2493.5,16.34420336]
[1725156203904,0.00600336,2494.0,2493.9,0.40099]
[1725156204311,0.00600336,2494.0,2493.9,10.0096]
[1725156204515,0.00600336,2494.0,2493.9,10.41059]
[1725156204806,3.2078,2494.3,2493.9,10.41058]
[1725156205006,3.2078,2494.3,2493.9,0.40099]
[1725156205198,3.2078,2494.3,2493.8,3.6088]
[1725156205199,4.76945227,2494.2,2493.8,3.6088]
[1725156205400,4.57059593,2494.2,2493.9,0.40099]
[1725156205907,4.57059593,2494.2,2494.0,0.40097]
[1725156206108,4.57059593,2494.2,2493.9,4.0096]
[1725156206707,4.57059593,2494.2,2494.0,1.38217]
[1725156207114,0.00601552,2494.3,2494.1,4.0096]
[1725156207504,0.00601552,2494.3,2494.2,4.41055]
[1725156207912,0.00601552,2494.3,2494.2,10.41055]
[1725156208110,3.2078,2495.1,2494.2,13.1296]
[1725156208313,3.2078,2495.1,2494.6,0.40087]
[1725156208610,4.17852328,2494.9,2494.6,0.40087]
[1725156208811,3.57712991,2495.0,2494.6,0.40087]
[1725156209002,3.6086,2495.1,2494.6,0.40087]
[1725156209203,4.51151159,2495.0,2494.5,0.40089]
[1725156209410,4.71298296,2495.0,2494.5,0.40089]
[1725156210198,3.12,2494.7,2494.4,3.2078]
[1725156210404,3.12,2494.5,2494.3,0.4696]
[1725156210601,0.40092,2494.4,2494.1,0.4666]
[1725156210806,4.91244159,2494.4,2494.1,0.4696]
[1725156211216,4.91244159,2494.4,2493.8,3.2078]
[1725156211217,3.12,2494.3,2493.8,3.2078]
[1725156211413,0.40096,2494.2,2493.7,0.87511]
[1725156211709,4.47066682,2494.2,2493.7,0.4741]
[1725156211913,4.47066682,2494.2,2493.7,0.87511]
[1725156212113,0.40096,2494.1,2493.7,0.4741]
[1725156212504,4.44591269,2494.0,2493.8,0.40101]
[1725156212704,3.12,2494.3,2493.9,0.40098]
[1725156212914,4.44591269,2494.2,2493.9,0.40098]
[1725156213122,3.12,2494.5,2493.8,3.2078]
[1725156213413,3.12,2494.5,2494.2,0.40094]
[1725156213414,4.37788381,2494.4,2494.2,0.40094]
[1725156213615,3.12,2494.5,2494.3,1.4497]
[1725156213813,4.37788381,2494.4,2494.3,1.4497]
[1725156214415,4.37788381,2494.4,2494.3,11.85943]
[1725156214613,4.00426,2494.8,2494.3,5.85943]
[1725156214813,4.00426,2494.8,2494.3,1.85063]
[1725156215117,4.25848081,2494.7,2494.4,0.40091]
[1725156216518,4.25848081,2494.7,2494.4,3.60871]
[1725156217715,4.25848081,2494.7,2494.4,3.2078]
[1725156218016,0.4814,2494.6,2494.4,3.2078]
[1725156218420,4.17132495,2494.5,2494.4,3.2078]
[1725156221017,7.29132495,2494.5,2494.0,7.3558]
[1725156221221,7.29132495,2494.5,2494.0,4.148]
[1725156221222,0.40094,2494.3,2494.0,4.148]
[1725156221526,4.27014649,2494.2,2494.0,4.148]
[1725156223619,0.5051,2494.1,2494.0,4.148]
[1725156224019,0.5051,2494.1,2494.0,6.15361329]
[1725156224020,4.88518785,2494.1,2494.0,6.15361329]
[1725156224422,4.88518785,2494.1,2494.0,6.15356069]
[1725156224918,5.28614785,2494.1,2493.7,5.30039959]
[1725156225127,5.28614785,2494.1,2493.8,2.00568201]
[1725156225128,4.88518785,2494.1,2493.8,2.00568201]
[1725156225317,4.88518785,2494.1,2493.9,2.00568201]
[1725156225513,4.88518785,2494.1,2493.7,5.30039959]
[1725156225828,4.88518785,2494.1,2493.8,2.00568766]
[1725156226122,4.88518785,2494.1,2493.9,2.00568766]
[1725156226429,4.88518785,2494.1,2493.7,5.70141959]
[1725156226619,4.88518785,2494.1,2493.8,2.00567635]
[1725156226819,4.88518785,2494.1,2493.9,2.00567635]
[1725156227031,4.88518785,2494.1,2493.7,5.70141959]
[1725156227243,4.88518785,2494.1,2493.8,2.0057247]
[1725156227431,4.88518785,2494.1,2493.7,5.30039959]
[1725156227432,4.88518785,2494.1,2493.9,2.0057247]
[1725156227633,4.88518785,2494.1,2493.7,5.70142959]
[1725156227831,4.88518785,2494.1,2493.8,2.00570324]
[1725156228027,4.88518785,2494.1,2493.9,2.00570324]
[1725156228336,4.88518785,2494.1,2493.7,5.70142959]
[1725156228531,4.88518785,2494.1,2493.8,2.00567755]
[1725156228734,4.88518785,2494.1,2493.9,2.00567755]
[1725156229034,4.88518785,2494.1,2493.8,0.401]
[1725156229035,4.38008785,2494.1,2494.0,2.00567755]
[1725156229436,4.38008785,2494.1,2494.0,6.01525912]
[1725156230745,4.38008785,2494.1,2494.0,2.00565912]
[1725156230934,5.25574785,2494.1,2494.0,2.00565912]
[1725156231235,4.85478785,2494.1,2494.0,2.00565912]
[1725156231436,5.25574785,2494.1,2494.0,2.00565912]
[1725156231640,4.85478785,2494.1,2494.0,2.00565912]
[1725156232935,5.25574785,2494.1,2494.0,2.00565912]
[1725156233540,4.85478785,2494.1,2494.0,2.00565912]
[1725156234532,4.85478785,2494.1,2494.0,2.00575329]
[1725156237342,4.38008785,2494.1,2494.0,6.01535329]
[1725156237535,4.38008785,2494.1,2494.0,10.10933329]
[1725156237731,4.38008785,2494.1,2494.0,12.20193288]
[1725156237931,4.38008785,2494.1,2494.0,11.80095288]
[1725156238343,4.38008785,2494.1,2494.0,12.20193288]
[1725156239347,4.0855,2494.5,2494.2,0.40094]
[1725156239547,4.9698,2494.5,2494.3,2.00553721]
[1725156239848,4.61261605,2494.4,2494.1,2.09259959]
[1725156240050,6.33381552,2495.1,2494.6,0.40087]
[1725156240249,0.4834,2494.9,2494.5,0.40089]
[1725156240448,4.42003377,2494.8,2494.6,2.00527152]
[1725156240649,3.12,2494.8,2494.5,2.09582763]
[1725156240851,4.90343377,2494.9,2494.3,9.97154948]
[1725156240852,3.52089,2494.6,2494.3,12.06737711]
[1725156241153,5.55559232,2494.5,2494.4,2.00532448]
[1725156241445,5.15469232,2494.5,2494.4,2.00532448]
[1725156241946,5.55559232,2494.5,2494.4,2.00532448]
[1725156242640,5.15469232,2494.5,2494.4,2.00532448]
[1725156242840,5.15469232,2494.5,2494.4,6.01415675]
[1725156243040,3.12,2494.7,2494.4,6.41506675]
[1725156243243,3.12,2494.7,2494.6,1.0479209]
[1725156243645,7.55034428,2494.7,2494.6,1.0479209]
[1725156244548,7.55034428,2494.7,2494.6,3.05322974]
[1725156245650,7.55034428,2494.7,2494.6,2.00530884]
[1725156246041,3.6695,2494.8,2494.6,6.01410884]
[1725156246243,3.6695,2494.8,2494.7,1.04812219]
[1725156246449,3.6695,2494.8,2494.7,3.05337249]
[1725156246849,0.00601552,2495.1,2494.7,17.31767793]
[1725156247045,3.2078,2495.5,2494.7,17.31767793]
[1725156247046,0.9278,2495.5,2495.0,3.2078]
[1725156247250,0.4828,2495.7,2495.4,2.09595719]
[1725156247450,0.4828,2495.7,2495.5,2.0052503]
[1725156247651,7.32150323,2495.6,2495.4,2.09575874]
[1725156247852,11.78460323,2495.6,2495.2,1.04737799]
[1725156248052,0.4008,2495.1,2495.0,1.04737799]
[1725156248351,7.34037829,2495.1,2494.9,1.04737799]
[1725156248561,1.4134,2495.0,2494.9,1.04737799]
[1725156248752,5.4214,2495.0,2494.9,1.04737799]
[1725156248949,10.04259829,2495.0,2494.9,1.04737799]
[1725156249255,10.04259829,2495.0,2494.8,1.05339351]
[1725156249456,9.64177829,2495.0,2494.9,1.04737799]
[1725156249656,10.20417671,2495.0,2494.9,1.04737799]
[1725156250646,10.36574204,2495.0,2494.9,1.04737799]
[1725156250958,13.41196362,2495.0,2494.8,1.05339351]
[1725156251147,0.16156533,2494.9,2494.8,1.05339351]
[1725156251348,0.16156533,2494.9,2494.8,3.05858662]
[1725156251553,4.33046166,2494.9,2494.8,1.05339351]
[1725156251755,14.73929166,2494.9,2494.8,0.29799351]
[1725156251955,14.73929166,2494.9,2494.5,2.09575874]
[1725156251956,0.40086,2494.7,2494.5,1.57300005]
[1725156252154,0.467,2494.6,2494.5,1.57300005]
[1725156252354,4.93245065,2494.6,2494.5,3.57838939]
[1725156252553,8.94125065,2494.6,2494.5,3.57838939]
[1725156252962,15.34213065,2494.6,2494.5,3.57838939]
[1725156253160,0.4009,2494.5,2494.3,1.57901557]
[1725156253349,15.1028853,2494.6,2494.3,1.57901557]
[1725156253350,4.93245065,2494.6,2494.3,1.57901557]
[1725156253550,4.93245065,2494.6,2494.5,3.2078]
[1725156253551,4.46545065,2494.6,2494.5,3.2078]
[1725156253746,4.46545065,2494.6,2494.5,11.8439443]
[1725156253952,4.46545065,2494.6,2494.5,13.23279781]
[1725156255148,4.46545065,2494.6,2494.5,10.79502676]
[1725156255465,7.69132895,2494.6,2494.3,1.57890933]
[1725156255646,0.4915,2494.5,2494.3,1.57890933]
[1725156255848,0.4639,2494.4,2494.3,1.57890933]
[1725156256163,5.50953159,2494.4,2494.3,0.00601552]
[1725156256753,5.50953159,2494.4,2494.3,2.01150259]
[1725156257461,5.50953159,2494.4,2494.3,2.0114811]
[1725156258059,5.50953159,2494.4,2494.3,3.58437491]
[1725156258364,5.50953159,2494.4,2494.3,2.0114811]
[1725156258560,5.50953159,2494.4,2494.3,0.00601552]
[1725156258856,0.19918273,2495.1,2494.3,18.89828296]
[1725156259056,0.00281186,2495.6,2494.3,18.89828296]
[1725156259057,0.9121,2495.5,2494.9,1.57316909]
[1725156259261,0.9121,2495.5,2495.0,5.03175097]
[1725156259464,4.22828394,2495.2,2495.1,2.00558188]
[1725156259671,5.73783775,2495.5,2495.1,2.00558188]
[1725156259960,3.62684441,2495.2,2495.0,3.02616909]
[1725156260150,4.22881381,2495.5,2495.1,2.00479052]
[1725156260350,4.34258575,2495.3,2495.0,3.42697909]
[1725156260557,4.34258575,2495.3,2495.0,3.02616909]
[1725156260856,4.22881381,2495.5,2495.0,3.42697909]
[1725156260857,4.0321,2495.5,2495.0,3.42697909]
[1725156261062,4.0321,2495.5,2495.1,2.00475111]
[1725156261063,4.34258575,2495.2,2495.1,2.00475111]
[1725156261447,3.93706926,2495.4,2495.0,3.42697909]
[1725156261648,4.0321,2495.5,2495.0,3.42697909]
[1725156261955,4.60111178,2495.4,2495.0,3.42697909]
[1725156262261,5.00186178,2495.4,2495.0,3.02616909]
[1725156262455,5.00186178,2495.4,2495.0,0.9752]
[1725156262658,4.60111178,2495.4,2495.0,2.54836909]
[1725156263251,4.60111178,2495.4,2495.1,4.01594086]
[1725156263453,4.60111178,2495.4,2495.1,2.41195909]
[1725156263651,4.60111178,2495.4,2495.2,2.00476807]
[1725156263848,4.60111178,2495.4,2495.1,2.41195909]
[1725156264051,4.60111178,2495.4,2495.2,2.40554775]
[1725156264263,4.60111178,2495.4,2495.2,1.97394909]
[1725156264448,4.60111178,2495.4,2495.3,2.00468533]
[1725156265256,4.60111178,2495.4,2495.3,6.01188533]
[1725156265455,4.60111178,2495.4,2495.3,4.0072]
[1725156265661,4.60111178,2495.4,2495.2,1.97394909]
[1725156266961,4.60111178,2495.4,2495.3,0.40077]
[1725156267553,4.60111178,2495.4,2495.2,0.40078]
[1725156267753,4.60111178,2495.4,2495.3,0.40077]
[1725156268281,0.00281186,2495.6,2495.5,0.40074]
[1725156268663,0.00281186,2495.6,2495.5,4.40794]
[1725156269667,0.00281186,2495.6,2495.5,4.86194]
[1725156270664,0.00281186,2495.6,2495.5,0.85474]
[1725156271464,0.00281186,2495.6,2495.5,4.86194]
[1725156272969,0.40074,2495.5,2495.4,0.0202]
[1725156273169,3.60854,2495.5,2495.4,0.0202]
[1725156273365,9.28984118,2495.5,2495.4,0.0202]
[1725156273871,18.49764118,2495.5,2495.4,0.0202]
[1725156274067,12.49764118,2495.5,2495.4,0.0202]
[1725156275572,12.07670118,2495.5,2495.4,0.0202]
[1725156275970,12.47744118,2495.5,2495.4,0.0202]
[1725156276673,12.07670118,2495.5,2495.4,0.0202]
[1725156277277,8.06950118,2495.5,2495.4,0.0202]
[1725156277667,12.47744118,2495.5,2495.4,0.0202]
[1725156279378,18.63899112,2495.5,2494.7,1.57316909]
[1725156279676,0.4008,2495.2,2494.8,2.42957072]
[1725156279883,0.4008,2495.2,2494.8,1.99766909]
[1725156280066,4.26560754,2495.1,2494.8,1.99766909]
[1725156280577,4.26560754,2495.1,2494.9,0.40083]
[1725156280980,4.21460471,2495.2,2494.9,1.97399909]
[1725156281174,0.18130283,2495.3,2494.9,1.97399909]
[1725156281477,4.19155473,2495.3,2494.9,1.97399909]
[1725156281680,4.19155473,2495.3,2495.0,0.40082]
[1725156281874,3.5602,2495.5,2495.1,0.4008]
[1725156282075,4.19155473,2495.2,2495.1,0.4008]
[1725156282476,0.469,2495.4,2495.1,0.4008]
[1725156282680,0.469,2495.4,2495.0,1.57316909]
[1725156282879,0.469,2495.4,2494.8,2.52205878]
[1725156282880,4.18704865,2495.2,2494.9,1.57316909]
[1725156283085,4.18704865,2495.3,2494.9,1.57316909]
[1725156283277,0.86977,2495.4,2494.9,1.57316909]
[1725156283584,4.25974967,2495.3,2495.0,2.00491746]
[1725156283776,4.25974967,2495.3,2494.9,1.57316909]
[1725156283978,4.25974967,2495.3,2495.0,2.00491354]
[1725156284181,4.66051967,2495.3,2494.9,1.57316909]
[1725156284478,4.66051967,2495.3,2495.0,2.00492959]
[1725156284479,0.40079,2495.2,2495.0,2.00492959]
[1725156284783,5.02669357,2495.1,2494.9,1.57316909]
[1725156284985,4.62509357,2495.1,2494.9,1.57316909]
[1725156285283,4.62509357,2495.1,2494.7,2.09755878]
[1725156285284,4.62509357,2495.1,2495.0,0.4251]
[1725156285485,5.02589357,2495.1,2495.0,0.4251]
[1725156285784,5.02589357,2495.1,2494.7,1.57316909]
[1725156285977,5.02589357,2495.1,2494.7,1.99826909]
[1725156286282,4.62509357,2495.1,2494.6,4.78096909]
[1725156286479,3.60864,2494.9,2494.5,3.67072787]
[1725156286783,5.44982601,2494.8,2494.4,0.4251]
[1725156287375,5.04897601,2494.8,2494.4,0.4251]
[1725156287585,0.83507,2494.7,2494.4,0.4251]
[1725156287983,4.29731553,2494.6,2494.4,0.4251]
[1725156288676,4.46634771,2494.7,2494.4,0.4251]
[1725156288875,0.438,2494.8,2494.5,0.4009]
[1725156289386,4.46634771,2494.7,2494.4,2.39917909]
[1725156289787,4.46634771,2494.7,2494.5,0.4009]
[1725156290481,4.46634771,2494.7,2494.4,1.99826909]
[1725156290482,4.86721771,2494.7,2494.4,1.99826909]
[1725156290677,4.46634771,2494.7,2494.4,0.4251]
[1725156291676,4.46634771,2494.7,2494.4,0.82601]
[1725156291884,4.46634771,2494.7,2494.5,0.4009]
[1725156292280,4.46634771,2494.7,2494.6,3.57841164]
[1725156292483,4.46634771,2494.7,2494.6,3.97929164]
[1725156292687,3.46373891,2494.7,2494.6,6.41492255]
[1725156292976,3.12,2495.3,2494.6,8.51247133]
[1725156292977,0.4008,2495.1,2494.6,8.51247133]
[1725156293180,0.4008,2495.1,2494.7,3.57687614]
[1725156293381,0.40082,2495.0,2494.8,2.00524255]
[1725156293580,0.40081,2495.1,2494.8,1.57163359]
[1725156293783,0.40081,2495.1,2494.7,1.97249359]
[1725156293784,2.9911971,2494.9,2494.7,1.97249359]
[1725156293980,2.9911971,2494.9,2494.8,2.00513183]
[1725156294176,4.60229781,2495.0,2494.8,2.00513183]
[1725156294384,0.40081,2495.1,2494.7,1.57163359]
[1725156294686,4.35785468,2495.0,2494.8,2.00511437]
[1725156294888,4.35785468,2495.0,2494.8,1.57163359]
[1725156295087,4.35785468,2495.0,2494.7,2.40389359]
[1725156295284,4.35785468,2495.0,2494.8,3.57674313]
[1725156295589,4.35785468,2495.0,2494.8,2.03343359]
[1725156296688,4.40466978,2495.1,2494.8,2.03343359]
[1725156296991,0.40079,2495.2,2494.8,2.03343359]
[1725156297187,4.63057879,2495.1,2494.8,2.03343359]
[1725156297389,4.63057879,2495.1,2494.9,2.00504088]
[1725156297588,4.63057879,2495.1,2494.8,2.03343359]
[1725156297788,4.63057879,2495.1,2494.9,2.00503646]
[1725156297984,4.63057879,2495.1,2494.8,2.03343359]
[1725156298191,4.63057879,2495.1,2494.9,2.00504783]
[1725156298384,4.63057879,2495.1,2494.8,2.03343359]
[1725156298695,4.63057879,2495.1,2494.9,2.00504687]
[1725156298991,4.63057879,2495.1,2494.8,2.03343359]
[1725156299192,4.63057879,2495.1,2494.9,2.00503448]
[1725156299393,4.63057879,2495.1,2494.8,2.43428359]
[1725156299595,4.63057879,2495.1,2494.9,3.97749687]
[1725156299896,4.51722089,2495.2,2495.0,2.00493674]
[1725156300092,0.4402,2495.3,2495.0,1.57163359]
[1725156300296,0.4402,2495.3,2495.1,2.0049107]
[1725156300493,4.57504034,2495.2,2495.1,1.57163359]
[1725156300701,4.57504034,2495.2,2495.1,3.5764633]
[1725156300994,4.97581034,2495.3,2495.1,7.5844633]
[1725156301182,0.40077,2495.3,2495.1,1.57163359]
[1725156301381,4.56063967,2495.2,2495.1,1.57163359]
[1725156301589,4.56063967,2495.2,2495.1,3.57648582]
[1725156301784,4.56063967,2495.2,2495.1,7.58448582]
[1725156301991,4.56063967,2495.2,2495.0,1.57163359]
[1725156301992,8.96941967,2495.2,2495.0,1.57163359]
[1725156302194,3.73710873,2495.1,2494.8,1.57163359]
[1725156302489,3.73710873,2495.1,2494.7,5.71963359]
[1725156302490,0.40084,2494.9,2494.7,5.71963359]
[1725156302696,0.40084,2494.9,2494.8,2.00519932]
[1725156303086,4.65269706,2494.9,2494.8,2.00519932]
[1725156303494,4.65269706,2494.9,2494.8,3.57683291]
[1725156303689,4.65269706,2494.9,2494.8,2.00519932]
[1725156303998,4.65269706,2494.9,2494.8,3.57683291]
[1725156304294,4.65269706,2494.9,2494.8,2.00519932]
[1725156304894,4.65269706,2494.9,2494.8,2.00523095]
[1725156305294,4.65269706,2494.9,2494.8,3.57686454]
[1725156306294,4.65269706,2494.9,2494.8,2.00523095]
[1725156307394,4.65269706,2494.9,2494.7,1.57163359]
[1725156307395,0.40085,2494.8,2494.7,1.57163359]
[1725156307702,4.74933946,2494.8,2494.7,2.00525467]
[1725156308701,4.34848946,2494.8,2494.7,2.00525467]
[1725156309002,4.89109925,2494.9,2494.7,2.00525467]
[1725156309204,4.89109925,2494.9,2494.6,1.57163359]
[1725156309410,0.40084,2494.9,2494.7,2.00522602]
[1725156309699,4.6279017,2494.8,2494.6,1.57163359]
[1725156309901,5.0287517,2494.8,2494.7,2.0052244]
[1725156310397,0.40085,2494.8,2494.7,2.0052244]
[1725156310596,4.70012421,2494.8,2494.7,2.0052244]
[1725156311495,0.40086,2494.7,2494.6,1.57163359]
[1725156311696,0.88576,2494.7,2494.6,2.00532485]
[1725156311894,0.4849,2494.7,2494.6,3.57695844]
[1725156312089,0.4657,2495.0,2494.6,7.58575844]
[1725156312294,0.4657,2495.0,2494.8,1.57163359]
[1725156312511,0.6664507,2495.0,2494.9,0.4986]
[1725156312696,4.29284136,2494.9,2494.8,1.57163359]
[1725156312896,4.29284136,2494.9,2494.8,3.57670673]
[1725156313205,1.0672707,2495.0,2494.8,7.58470673]
[1725156313408,1.0672707,2495.0,2494.8,1.57163359]
[1725156313604,4.56577978,2494.9,2494.8,1.57163359]
[1725156313806,4.56577978,2494.9,2494.8,3.57670755]
[1725156314010,4.56577978,2494.9,2494.8,7.58470755]
[1725156314392,0.5964477,2495.1,2494.8,7.58470755]
[1725156314598,0.5964477,2495.1,2494.8,1.57163359]
[1725156314799,4.27283032,2495.0,2494.9,2.00508096]
[1725156315502,4.27283032,2495.0,2494.9,3.57671455]
[1725156316405,4.27283032,2495.0,2494.9,8.11260938]
[1725156316997,0.20292243,2495.1,2494.9,10.0230506]
[1725156317197,0.20292243,2495.1,2494.8,3.02078649]
[1725156317198,0.4548,2495.2,2495.0,8.1135304]
[1725156317397,4.65923301,2495.2,2495.1,2.47068096]
[1725156318197,4.82063921,2495.2,2495.1,2.47068096]
[1725156318402,4.82063921,2495.2,2495.1,4.56933961]
[1725156318904,5.22141921,2495.2,2495.1,4.56933961]
[1725156319511,4.82063921,2495.2,2495.1,4.56933961]
[1725156319807,4.05774848,2495.2,2495.1,6.47994864]
[1725156320002,4.05774848,2495.2,2495.1,9.50069513]
[1725156320601,4.05774848,2495.2,2495.1,9.09989513]
[1725156321421,4.05774848,2495.2,2495.1,8.63429513]
[1725156321422,4.45852848,2495.2,2495.1,8.63429513]
[1725156321622,4.61997374,2495.2,2495.1,8.11477019]
[1725156321824,5.11847374,2495.2,2495.1,2.00478288]
[1725156322324,5.46149214,2495.2,2495.1,3.58014879]
[1725156322726,5.58967374,2495.2,2495.1,3.58014879]
[1725156322929,5.93272268,2495.2,2495.1,3.58014879]
[1725156323332,9.94072268,2495.2,2495.1,2.00478288]
[1725156323530,0.4008,2495.1,2495.0,1.57536591]
[1725156323721,1.3898942,2495.1,2495.0,3.5804814]
[1725156323921,9.86787694,2495.1,2495.0,2.00511549]
[1725156324235,9.36338274,2495.1,2495.0,3.5804814]
[1725156324419,9.86799309,2495.1,2495.0,3.5804814]
[1725156324814,9.86799309,2495.1,2495.0,3.58054969]
[1725156327826,9.36338274,2495.1,2495.0,3.58054969]
[1725156328030,9.86794871,2495.1,2495.0,3.58054969]
[1725156328220,9.36338274,2495.1,2495.0,3.58054969]
[1725156328419,9.86794827,2495.1,2495.0,3.58054969]
[1725156330424,0.40082,2495.0,2494.9,1.57536591]
[1725156330734,8.99854491,2495.0,2494.6,1.57536591]
[1725156331025,6.3278,2494.7,2494.6,1.57536591]
[1725156331229,6.83207107,2494.7,2494.6,2.00548902]
[1725156331416,16.91927984,2494.7,2494.6,2.00548902]
[1725156331619,0.4009,2494.5,2494.4,1.57536591]
[1725156331816,1.40315,2494.5,2494.4,3.58098972]
[1725156332015,0.40091,2494.4,2494.3,1.58138143]
[1725156332219,3.77008759,2494.4,2494.3,3.58705685]
[1725156332422,8.37419636,2494.4,2494.3,3.58705685]
[1725156332627,8.37419636,2494.4,2494.3,2.01169094]
[1725156333023,8.37419636,2494.4,2494.3,0.00601552]
[1725156333425,8.37419636,2494.4,2494.3,2.01175576]
[1725156333632,8.37419636,2494.4,2494.3,0.00601552]
[1725156334032,7.97328636,2494.4,2494.3,0.00601552]
[1725156334223,7.81190877,2494.4,2494.3,3.58703025]
[1725156334726,7.81190877,2494.4,2494.3,3.58699338]
[1725156335636,7.81190877,2494.4,2494.3,2.01162747]
[1725156336132,4.60410877,2494.4,2494.3,3.58699338]
[1725156336633,4.43074288,2494.6,2494.3,3.58699338]
[1725156336834,4.51537,2494.7,2494.4,2.47471195]
[1725156337022,4.43074288,2494.6,2494.4,0.4691]
[1725156337427,4.43074288,2494.6,2494.5,2.00550306]
[1725156337428,4.83162288,2494.6,2494.5,2.00550306]
[1725156339334,4.83162288,2494.6,2494.5,2.00549328]
[1725156339839,4.83162288,2494.6,2494.5,2.00546481]
[1725156340031,4.43074288,2494.6,2494.5,2.00546481]
[1725156340522,4.43074288,2494.6,2494.4,2.04446591]
[1725156340720,4.43074288,2494.6,2494.5,2.00549809]
[1725156341122,4.43074288,2494.6,2494.5,3.580864]
[1725156341327,4.43074288,2494.6,2494.5,4.053364]
[1725156341525,4.61087789,2494.7,2494.5,2.47799809]
[1725156341735,3.60865,2494.8,2494.6,4.07148896]
[1725156341929,3.60865,2494.8,2494.6,2.06599087]
[1725156342135,4.61087789,2494.7,2494.6,0.4919]
[1725156342335,4.61087789,2494.7,2494.6,4.07136025]
[1725156343935,4.61087789,2494.7,2494.6,9.00737093]
[1725156344831,3.60828747,2494.7,2494.6,13.01577497]
[1725156345026,3.60828747,2494.7,2494.6,10.91712252]
[1725156345528,3.60828747,2494.7,2494.6,13.01583559]
[1725156346141,3.60828747,2494.7,2494.6,8.11425559]
[1725156346338,3.60828747,2494.7,2494.6,4.10389391]
[1725156346541,4.00914747,2494.7,2494.6,8.11436683]
[1725156346835,4.00914747,2494.7,2494.6,4.10389391]
[1725156346836,3.60828747,2494.7,2494.6,4.10389391]
[1725156347338,4.00914747,2494.7,2494.6,2.00518084]
[1725156347532,4.00914747,2494.7,2494.6,3.5794157]
[1725156349031,0.40088,2494.6,2494.5,1.57423486]
[1725156349233,0.90658,2494.6,2494.5,2.00552759]
[1725156349427,0.90658,2494.6,2494.4,1.57423486]
[1725156349428,8.91646599,2494.6,2494.4,1.57423486]
[1725156349634,1.3938,2494.5,2494.4,1.57423486]
[1725156349830,4.6016,2494.5,2494.4,3.57986875]
[1725156350137,0.40091,2494.4,2494.3,1.58025038]
[1725156350340,0.40091,2494.4,2494.3,2.01169185]
[1725156350535,5.02307955,2494.4,2494.3,2.01169185]
[1725156351140,5.02307955,2494.4,2494.3,3.58592671]
[1725156351438,5.02307955,2494.4,2494.3,2.01169185]
[1725156352533,4.62216955,2494.4,2494.3,3.58592671]
[1725156353139,4.62216955,2494.4,2494.3,8.12129189]
[1725156353640,4.25884891,2494.6,2494.3,8.12129189]
[1725156353843,0.40087,2494.7,2494.5,1.57388368]
[1725156354044,0.40087,2494.7,2494.6,0.476]
[1725156354555,4.65971891,2494.7,2494.6,0.9908]
[1725156355237,4.65971891,2494.7,2494.5,1.57388368]
[1725156358343,4.25884891,2494.7,2494.5,1.57388368]
[1725156358541,4.25884891,2494.7,2494.5,2.07208368]
[1725156359248,4.65971891,2494.7,2494.5,1.57388368]
[1725156360736,0.4009,2494.5,2494.4,1.57388368]
[1725156360948,3.6087,2494.5,2494.4,2.00553695]
[1725156361141,12.25772107,2494.5,2494.4,2.00553695]
[1725156361645,0.40091,2494.4,2494.3,0.00601552]
[1725156361951,6.5366655,2494.4,2494.3,0.00601552]
[1725156363147,6.5366655,2494.4,2494.3,2.01170545]
[1725156363451,6.1357555,2494.4,2494.3,2.01170545]
[1725156363855,6.5366655,2494.4,2494.3,0.00601552]
[1725156365546,6.5366655,2494.4,2494.3,2.01173002]
[1725156365547,10.5454655,2494.4,2494.3,2.01173002]
[1725156365751,13.6654655,2494.4,2494.3,0.00601552]
[1725156365953,13.82683027,2494.4,2494.3,0.00601552]
[1725156368662,13.6654655,2494.4,2494.3,0.00601552]
[1725156368849,13.82682994,2494.4,2494.3,0.00601552]
[1725156369752,17.03462994,2494.4,2494.3,0.00601552]
[1725156370146,15.08751994,2494.4,2494.3,0.00601552]
[1725156370455,7.7973555,2494.4,2494.3,3.58574395]
[1725156371246,7.7973555,2494.4,2494.3,2.01186027]
[1725156371556,7.7973555,2494.4,2494.3,4.11057334]
[1725156371760,8.1982655,2494.4,2494.3,2.01186027]
[1725156371963,11.3182655,2494.4,2494.3,2.01186027]
[1725156372261,15.3270655,2494.4,2494.3,2.01186027]